fUST/lending_fUST_20250411
["ID","MTS","AMOUNT","RATE_DAILY","PERIOD"]
[357690188,1744332706838,-1800.19,0.00020273,2]
[357690189,1744332706848,-508.82,0.00020273,2]
[357690190,1744332706857,-500.0,0.00020273,2]
[357690191,1744332706867,-965.93,0.00020273,2]
[357690192,1744332706876,-622.37,0.00020273,2]
[357690193,1744332706885,-964.69,0.00020273,2]
[357690194,1744332706895,-1069.32,0.00020273,2]
[357690195,1744332706904,-1504.79,0.00020273,2]
[357690196,1744332706914,-626.21,0.00020273,2]
[357690197,1744332706923,-522.1,0.00020273,2]
[357690198,1744332706932,-500.0,0.00020273,2]
[357690199,1744332706942,-500.0,0.00020273,2]
[357690200,1744332707121,-280.54081479,0.00020273,2]
[357690201,1744332707132,-500.0,0.00020273,2]
[357690202,1744332707142,-519.3,0.00020273,2]
[357690203,1744332707152,-1328.83,0.00020273,2]
[357690204,1744332707162,-920.39,0.00020273,2]
[357690205,1744332707171,-1101.36,0.00020273,2]
[357690206,1744332707181,-500.0,0.00020273,2]
[357690207,1744332707191,-818.53,0.00020273,2]
[357690208,1744332707201,-856.67,0.00020273,2]
[357690209,1744332707210,-743.65,0.00020273,2]
[357690210,1744332707220,-1156.1,0.00020273,2]
[357690211,1744332707229,-678.36,0.00020273,2]
[357690212,1744332707238,-1705.48,0.00020273,2]
[357690213,1744332707248,-716.68,0.00020273,2]
[357690214,1744332707259,-500.0,0.00020273,2]
[357690215,1744332707268,-1296.89,0.00020273,2]
[357690216,1744332707278,-500.0,0.00020273,2]
[357690217,1744332707287,-790.9,0.00020273,2]
[357690218,1744332707296,-704.94,0.00020273,2]
[357690219,1744332707306,-567.7,0.00020273,2]
[357690220,1744332707316,-500.0,0.00020273,2]
[357690221,1744332707326,-558.42,0.00020273,2]
[357690222,1744332707336,-500.0,0.00020273,2]
[357690223,1744332707345,-1188.07,0.00020273,2]
[357690224,1744332707355,-500.0,0.00020273,2]
[357690225,1744332707365,-714.62,0.00020273,2]
[357690226,1744332707374,-3771.47,0.00020273,2]
[357690227,1744332707384,-570.24,0.00020273,2]
[357690228,1744332707394,-1402.01,0.00020273,2]
[357690229,1744332707403,-500.0,0.00020273,2]
[357690230,1744332707413,-1107.44,0.00020273,2]
[357690231,1744332707423,-726.32,0.00020273,2]
[357690232,1744332707432,-1438.7,0.00020273,2]
[357690233,1744332707442,-500.0,0.00020273,2]
[357690234,1744332707452,-934.2,0.00020273,2]
[357690235,1744332707462,-870.5,0.00020273,2]
[357690236,1744332707472,-1864.53,0.00020273,2]
[357690237,1744332707481,-537.53,0.00020273,2]
[357690238,1744332707491,-998.15,0.00020273,2]
[357690239,1744332707501,-1383.56,0.00020273,2]
[357690240,1744332707511,-3529.69,0.00020273,2]
[357690241,1744332707521,-500.0,0.00020273,2]
[357690242,1744332707531,-3044.77,0.00020273,2]
[357690243,1744332707542,-2146.75,0.00020273,2]
[357690244,1744332707553,-1512.13,0.00020273,2]
[357690245,1744332707563,-14936.72,0.00020273,2]
[357690246,1744332707573,-1335.19,0.00020273,2]
[357690247,1744332707583,-500.0,0.00020273,2]
[357690248,1744332707592,-1204.17,0.00020273,2]
[357690249,1744332707602,-1290.13,0.00020273,2]
[357690250,1744332707611,-2211.01,0.00020273,2]
[357690251,1744332707621,-500.0,0.00020273,2]
[357690252,1744332707630,-782.17,0.00020273,2]
[357690253,1744332707640,-1521.17,0.00020273,2]
[357690254,1744332707649,-387.88156904,0.00020273,2]
[357690255,1744332707659,-500.0,0.00020273,2]
[357690256,1744332707671,-500.0,0.00020273,2]
[357690257,1744332707681,-3640.91,0.00020273,2]
[357690258,1744332707691,-708.03,0.00020273,2]
[357690259,1744332707701,-500.0,0.00020273,2]
[357690260,1744332707711,-1604.56,0.00020273,2]
[357690261,1744332707721,-1186.97,0.00020273,2]
[357690262,1744332707730,-7810.81,0.00020273,2]
[357690263,1744332707741,-500.0,0.00020273,2]
[357690264,1744332707751,-640.07,0.00020273,2]
[357690265,1744332707761,-500.0,0.00020273,2]
[357690266,1744332707771,-614.86,0.00020273,2]
[357690267,1744332707781,-13554.02,0.00020273,2]
[357690268,1744332707791,-769.63,0.00020273,2]
[357690269,1744332707801,-5806.94,0.00020273,2]
[357690270,1744332707811,-555.86,0.00020273,2]
[357690271,1744332707820,-1492.5,0.00020273,2]
[357690272,1744332707830,-726.32,0.00020273,2]
[357690273,1744332707839,-659.35,0.00020273,2]
[357690274,1744332707849,-688.0,0.00020273,2]
[357690275,1744332707858,-1067.15,0.00020273,2]
[357690276,1744332707867,-2931.48,0.00020273,2]
[357690277,1744332707877,-1735.47,0.00020273,2]
[357690278,1744332707886,-1109.5,0.00020273,2]
[357690279,1744332707896,-711.11,0.00020273,2]
[357690280,1744332707906,-13734.21,0.00020273,2]
[357690281,1744332707915,-2323.29,0.00020273,2]
[357690282,1744332707925,-1042.58,0.00020273,2]
[357690283,1744332707935,-728.17,0.00020273,2]
[357690284,1744332707944,-500.0,0.00020273,2]
[357690285,1744332707954,-569.2,0.00020273,2]
[357690286,1744332707963,-500.0,0.00020273,2]
[357690287,1744332707972,-4218.44,0.00020273,2]
[357690288,1744332707982,-848.49,0.00020273,2]
[357690289,1744332707992,-2639.23,0.00020273,2]
[357690290,1744332708001,-2518.79,0.00020273,2]
[357690291,1744332708011,-500.0,0.00020273,2]
[357690292,1744332708021,-2840.99,0.00020273,2]
[357690293,1744332708031,-630.78,0.00020273,2]
[357690294,1744332708041,-500.0,0.00020273,2]
[357690295,1744332708051,-500.0,0.00020273,2]
[357690296,1744332708061,-1220.83,0.00020273,2]
[357690297,1744332708070,-5035.72,0.00020273,2]
[357690298,1744332708080,-3916.52,0.00020273,2]
[357690299,1744332708089,-500.0,0.00020273,2]
[357690300,1744332708099,-500.0,0.00020273,2]
[357690301,1744332708109,-508.34,0.00020273,2]
[357690302,1744332708119,-1000.19,0.00020273,2]
[357690303,1744332708130,-884.76,0.00020273,2]
[357690304,1744332708140,-500.0,0.00020273,2]
[357690305,1744332708150,-4175.53,0.00020273,2]
[357690306,1744332708159,-1347.73,0.00020273,2]
[357690307,1744332708169,-2772.56,0.00020273,2]
[357690308,1744332708179,-792.4,0.00020273,2]
[357690309,1744332708188,-856.93,0.00020273,2]
[357690310,1744332708198,-740.48,0.00020273,2]
[357690311,1744332708207,-500.0,0.00020273,2]
[357690312,1744332708217,-781.83,0.00020273,2]
[357690313,1744332708228,-500.0,0.00020273,2]
[357690314,1744332708237,-601.25,0.00020273,2]
[357690315,1744332708247,-9626.05,0.00020273,2]
[357690316,1744332708256,-966.14,0.00020273,2]
[357690317,1744332708266,-1947.04,0.00020273,2]
[357690318,1744332708276,-500.0,0.00020273,2]
[357690319,1744332708286,-4677.94,0.00020273,2]
[357690320,1744332708297,-527.85,0.00020273,2]
[357690321,1744332708306,-714.13,0.00020273,2]
[357690322,1744332708315,-756.51,0.00020273,2]
[357690323,1744332708325,-808.09,0.00020273,2]
[357690324,1744332708335,-6483.88,0.00020273,2]
[357690325,1744332708345,-500.0,0.00020273,2]
[357690326,1744332708355,-615.42,0.00020273,2]
[357690327,1744332708365,-6484.18,0.00020273,2]
[357690328,1744332708375,-1945.56,0.00020273,2]
[357690329,1744332708384,-500.0,0.00020273,2]
[357690330,1744332708394,-524.93,0.00020273,2]
[357690331,1744332708403,-1064.33,0.00020273,2]
[357690332,1744332708412,-585.82,0.00020273,2]
[357690333,1744332708422,-1433.89,0.00020273,2]
[357690334,1744332708432,-917.83,0.00020273,2]
[357690335,1744332708441,-500.0,0.00020273,2]
[357690336,1744332708451,-668.16,0.00020273,2]
[357690337,1744332708461,-1100.79,0.00020273,2]
[357690338,1744332708472,-613.84290846,0.00020273,2]
[357690339,1744332708482,-540.97,0.00020273,2]
[357690340,1744332708492,-4679.43,0.00020273,2]
[357690341,1744332708501,-947.12,0.00020273,2]
[357690342,1744332708511,-500.0,0.00020273,2]
[357690343,1744332708521,-1008.44,0.00020273,2]
[357690344,1744332708531,-500.0,0.00020273,2]
[357690345,1744332708541,-4183.52,0.00020273,2]
[357690346,1744332708551,-1151.7,0.00020273,2]
[357690347,1744332708560,-759.31,0.00020273,2]
[357690348,1744332708569,-500.0,0.00020273,2]
[357690349,1744332708579,-500.0,0.00020273,2]
[357690350,1744332708589,-626.77,0.00020273,2]
[357690351,1744332708598,-942.33,0.00020273,2]
[357690352,1744332708607,-2564.86,0.00020273,2]
[357690353,1744332708617,-1699.0,0.00020273,2]
[357690354,1744332708628,-731.4,0.00020273,2]
[357690355,1744332708638,-500.0,0.00020273,2]
[357690356,1744332708649,-570.97,0.00020273,2]
[357690357,1744332708659,-754.83,0.00020273,2]
[357690358,1744332708672,-3260.9,0.00020273,2]
[357690359,1744332708681,-500.9,0.00020273,2]
[357690360,1744332708691,-500.0,0.00020273,2]
[357690361,1744332708702,-18184.96,0.00020273,2]
[357690362,1744332708712,-500.0,0.00020273,2]
[357690363,1744332708722,-506.91,0.00020273,2]
[357690364,1744332708732,-740.5,0.00020273,2]
[357690365,1744332708743,-559.11,0.00020273,2]
[357690366,1744332708753,-500.0,0.00020273,2]
[357690367,1744332708763,-1994.39,0.00020273,2]
[357690368,1744332708773,-6436.24,0.00020273,2]
[357690369,1744332708786,-911.05,0.00020273,2]
[357690370,1744332708797,-1272.17,0.00020273,2]
[357690371,1744332708806,-1574.76,0.00020273,2]
[357690372,1744332708816,-976.71,0.00020273,2]
[357690373,1744332708826,-1474.54,0.00020273,2]
[357690374,1744332708836,-650.21,0.00020273,2]
[357690375,1744332708846,-500.0,0.00020273,2]
[357690376,1744332708856,-2422.75,0.00020273,2]
[357690377,1744332708866,-3050.81,0.00020273,2]
[357690378,1744332708875,-524.39,0.00020273,2]
[357690379,1744332708885,-4000.0,0.00020308,2]
[357690380,1744332708895,-823.0,0.00020396,2]
[357690381,1744332708905,-823.0,0.00020398,2]
[357690382,1744332708916,-11630.24417326,0.00020486,2]
[357690383,1744332708926,-223.0315306,0.00020535,2]
[357690384,1744332708936,-151.0,0.00020535,2]
[357690385,1744332708946,-1132.93,0.00020547,2]
[357690386,1744332708956,-3699.75,0.00020547,2]
[357690387,1744332708965,-865.73,0.00020547,2]
[357690388,1744332708974,-1251.82,0.00020547,2]
[357690389,1744332708983,-599.27,0.00020547,2]
[357690390,1744332708993,-570.69,0.00020547,2]
[357690391,1744332709002,-822.09,0.00020547,2]
[357690392,1744332709011,-500.0,0.00020547,2]
[357690393,1744332709181,-780.46,0.00020547,2]
[357690394,1744332709191,-911.25,0.00020547,2]
[357690395,1744332709201,-500.0,0.00020547,2]
[357690396,1744332709210,-500.0,0.00020547,2]
[357690397,1744332709220,-300.0,0.00020547,2]
[357690398,1744332709230,-563.94849105,0.00020547,2]
[357690399,1744332709239,-1232.99,0.00020547,2]
[357690400,1744332709248,-588.16,0.00020547,2]
[357690401,1744332709258,-500.0,0.00020547,2]
[357690402,1744332709267,-500.0,0.00020547,2]
[357690403,1744332709277,-507.17,0.00020547,2]
[357690404,1744332709286,-500.0,0.00020547,2]
[357690405,1744332709297,-1079.66,0.00020547,2]
[357690406,1744332709307,-1430.67,0.00020547,2]
[357690407,1744332709316,-1119.95,0.00020547,2]
[357690408,1744332709326,-625.16,0.00020547,2]
[357690409,1744332709337,-500.0,0.00020547,2]
[357690410,1744332709346,-500.0,0.00020547,2]
[357690411,1744332709356,-686.77,0.00020547,2]
[357690412,1744332709367,-2680.42,0.00020547,2]
[357690413,1744332709377,-500.0,0.00020547,2]
[357690414,1744332709387,-500.0,0.00020547,2]
[357690415,1744332709397,-500.0,0.00020547,2]
[357690416,1744332709407,-596.86,0.00020547,2]
[357690417,1744332709417,-2411.42,0.00020547,2]
[357690418,1744332709426,-500.0,0.00020547,2]
[357690419,1744332709436,-687.7,0.00020547,2]
[357690420,1744332709446,-500.0,0.00020547,2]
[357690421,1744332709456,-902.62,0.00020547,2]
[357690422,1744332709465,-2689.13,0.00020547,2]
[357690423,1744332709475,-785.7,0.00020547,2]
[357690424,1744332709485,-500.0,0.00020547,2]
[357690425,1744332709495,-5675.99,0.00020547,2]
[357690426,1744332709505,-870.2,0.00020547,2]
[357690427,1744332709514,-597.88,0.00020547,2]
[357690428,1744332709524,-500.0,0.00020547,2]
[357690429,1744332709534,-626.25,0.00020547,2]
[357690430,1744332709545,-500.0,0.00020547,2]
[357690431,1744332709555,-892.18,0.00020547,2]
[357690432,1744332709565,-682.01,0.00020547,2]
[357690433,1744332709575,-500.0,0.00020547,2]
[357690434,1744332709585,-500.0,0.00020547,2]
[357690435,1744332709595,-2060.38,0.00020547,2]
[357690436,1744332709605,-605.05,0.00020547,2]
[357690437,1744332709615,-328.23391424,0.00020547,2]
[357690438,1744332709625,-2354.26,0.00020547,2]
[357690439,1744332709634,-622.34,0.00020547,2]
[357690440,1744332709644,-258.24148167,0.00020547,2]
[357690441,1744332709654,-1017.63,0.00020547,2]
[357690442,1744332709666,-938.97,0.00020547,2]
[357690443,1744332709676,-658.07,0.00020547,2]
[357690444,1744332709686,-500.0,0.00020547,2]
[357690445,1744332709695,-500.0,0.00020547,2]
[357690446,1744332709706,-1373.8,0.00020547,2]
[357690447,1744332709716,-753.79,0.00020547,2]
[357690448,1744332709725,-1265.29,0.00020547,2]
[357690449,1744332709734,-500.0,0.00020547,2]
[357690450,1744332709746,-820.1,0.00020547,2]
[357690451,1744332709756,-584.98,0.00020547,2]
[357690452,1744332709766,-1800.19,0.00020547,2]
[357690453,1744332709775,-508.82,0.00020547,2]
[357690454,1744332709785,-500.0,0.00020547,2]
[357690455,1744332709795,-965.93,0.00020547,2]
[357690456,1744332709805,-622.37,0.00020547,2]
[357690457,1744332709814,-964.69,0.00020547,2]
[357690458,1744332709823,-1069.32,0.00020547,2]
[357690459,1744332709834,-1504.79,0.00020547,2]
[357690460,1744332709843,-626.21,0.00020547,2]
[357690461,1744332709853,-522.1,0.00020547,2]
[357690462,1744332709863,-500.0,0.00020547,2]
[357690463,1744332709873,-500.0,0.00020547,2]
[357690464,1744332709883,-500.0,0.00020547,2]
[357690465,1744332709892,-519.3,0.00020547,2]
[357690466,1744332709902,-1328.83,0.00020547,2]
[357690467,1744332709912,-920.39,0.00020547,2]
[357690468,1744332709922,-1101.36,0.00020547,2]
[357690469,1744332709932,-500.0,0.00020547,2]
[357690470,1744332709941,-818.53,0.00020547,2]
[357690471,1744332709951,-856.67,0.00020547,2]
[357690472,1744332709960,-743.65,0.00020547,2]
[357690473,1744332709970,-1156.1,0.00020547,2]
[357690474,1744332709980,-678.36,0.00020547,2]
[357690475,1744332709990,-1705.48,0.00020547,2]
[357690476,1744332710000,-500.0,0.00020547,2]
[357690477,1744332710010,-716.68,0.00020547,2]
[357690478,1744332710019,-1296.89,0.00020547,2]
[357690479,1744332710029,-500.0,0.00020547,2]
[357690480,1744332710039,-790.9,0.00020547,2]
[357690481,1744332710048,-704.94,0.00020547,2]
[357690482,1744332710058,-567.7,0.00020547,2]
[357690483,1744332710068,-527.87463308,0.00020547,2]
[357690484,1744332710091,-558.42,0.00020547,2]
[357690485,1744332710109,-500.0,0.00020547,2]
[357690486,1744332710131,-1188.07,0.00020547,2]
[357690487,1744332710153,-225.76746645,0.00020547,2]
[357690488,1744332710173,-714.62,0.00020547,2]
[357690489,1744332710194,-3771.47,0.00020547,2]
[357690490,1744332710213,-570.24,0.00020547,2]
[357690491,1744332710230,-1402.01,0.00020547,2]
[357690492,1744332710251,-500.0,0.00020547,2]
[357690493,1744332710276,-1107.44,0.00020547,2]
[357690494,1744332710290,-726.32,0.00020547,2]
[357690495,1744332710312,-1438.7,0.00020547,2]
[357690496,1744332710332,-500.0,0.00020547,2]
[357690497,1744332710352,-934.2,0.00020547,2]
[357690498,1744332710369,-870.5,0.00020547,2]
[357690499,1744332710389,-1864.53,0.00020547,2]
[357690500,1744332710407,-537.53,0.00020547,2]
[357690501,1744332710425,-998.15,0.00020547,2]
[357690502,1744332710442,-1383.56,0.00020547,2]
[357690503,1744332710460,-3529.69,0.00020547,2]
[357690504,1744332710480,-388.35182749,0.00020547,2]
[357690505,1744332710497,-3044.77,0.00020547,2]
[357690506,1744332710516,-2146.75,0.00020547,2]
[357690507,1744332710533,-1512.13,0.00020547,2]
[357690508,1744332710551,-14936.72,0.00020547,2]
[357690509,1744332710572,-1335.19,0.00020547,2]
[357690510,1744332710590,-562.74492696,0.00020547,2]
[357690511,1744332710607,-1204.17,0.00020547,2]
[357690512,1744332710625,-1290.13,0.00020547,2]
[357690513,1744332710643,-2211.01,0.00020547,2]
[357690514,1744332710660,-427.68496418,0.00020547,2]
[357690515,1744332710678,-782.17,0.00020547,2]
[357690516,1744332710696,-1521.17,0.00020547,2]
[357690517,1744332710713,-500.0,0.00020547,2]
[357690518,1744332710731,-500.0,0.00020547,2]
[357690519,1744332710751,-3640.91,0.00020547,2]
[357690520,1744332710769,-708.03,0.00020547,2]
[357690521,1744332710787,-500.0,0.00020547,2]
[357690522,1744332710804,-1604.56,0.00020547,2]
[357690523,1744332710820,-1186.97,0.00020547,2]
[357690524,1744332710838,-7810.81,0.00020547,2]
[357690525,1744332710856,-500.0,0.00020547,2]
[357690526,1744332710872,-640.07,0.00020547,2]
[357690527,1744332710890,-500.0,0.00020547,2]
[357690528,1744332710908,-614.86,0.00020547,2]
[357690529,1744332710924,-13554.02,0.00020547,2]
[357690530,1744332710939,-769.63,0.00020547,2]
[357690531,1744332710957,-5806.94,0.00020547,2]
[357690532,1744332710973,-555.86,0.00020547,2]
[357690533,1744332710990,-1492.5,0.00020547,2]
[357690534,1744332711008,-726.32,0.00020547,2]
[357690535,1744332711025,-659.35,0.00020547,2]
[357690536,1744332711043,-688.0,0.00020547,2]
[357690537,1744332711061,-1067.15,0.00020547,2]
[357690538,1744332711078,-2931.48,0.00020547,2]
[357690539,1744332711095,-1735.47,0.00020547,2]
[357690540,1744332711112,-1109.5,0.00020547,2]
[357690541,1744332711131,-711.11,0.00020547,2]
[357690542,1744332711148,-13734.21,0.00020547,2]
[357690543,1744332711165,-2323.29,0.00020547,2]
[357690544,1744332711182,-1042.58,0.00020547,2]
[357690545,1744332711199,-728.17,0.00020547,2]
[357690546,1744332711216,-500.0,0.00020547,2]
[357690547,1744332711234,-569.2,0.00020547,2]
[357690548,1744332711250,-500.0,0.00020547,2]
[357690549,1744332711266,-4218.44,0.00020547,2]
[357690550,1744332711282,-848.49,0.00020547,2]
[357690551,1744332711299,-2639.23,0.00020547,2]
[357690552,1744332711318,-2518.79,0.00020547,2]
[357690553,1744332711336,-500.0,0.00020547,2]
[357690554,1744332711353,-2840.99,0.00020547,2]
[357690555,1744332711371,-630.78,0.00020547,2]
[357690556,1744332711388,-500.0,0.00020547,2]
[357690557,1744332711406,-500.0,0.00020547,2]
[357690558,1744332711425,-1220.83,0.00020547,2]
[357690559,1744332711443,-5035.72,0.00020547,2]
[357690560,1744332711461,-3916.52,0.00020547,2]
[357690561,1744332711478,-543.88434304,0.00020547,2]
[357690562,1744332711496,-500.0,0.00020547,2]
[357690563,1744332711514,-508.34,0.00020547,2]
[357690564,1744332711534,-1000.19,0.00020547,2]
[357690565,1744332711551,-884.76,0.00020547,2]
[357690566,1744332711569,-500.0,0.00020547,2]
[357690567,1744332711587,-4175.53,0.00020547,2]
[357690568,1744332711604,-1347.73,0.00020547,2]
[357690569,1744332711622,-2772.56,0.00020547,2]
[357690570,1744332711857,-792.4,0.00020547,2]
[357690571,1744332711887,-856.93,0.00020547,2]
[357690572,1744332711898,-740.48,0.00020547,2]
[357690573,1744332711908,-500.0,0.00020547,2]
[357690574,1744332711918,-781.83,0.00020547,2]
[357690575,1744332711927,-320.16960202,0.00020547,2]
[357690576,1744332711938,-601.25,0.00020547,2]
[357690577,1744332711948,-9626.05,0.00020547,2]
[357690578,1744332711957,-966.14,0.00020547,2]
[357690579,1744332711967,-1947.04,0.00020547,2]
[357690580,1744332711976,-500.0,0.00020547,2]
[357690581,1744332711986,-4677.94,0.00020547,2]
[357690582,1744332711996,-527.85,0.00020547,2]
[357690583,1744332712005,-714.13,0.00020547,2]
[357690584,1744332712015,-756.51,0.00020547,2]
[357690585,1744332712025,-808.09,0.00020547,2]
[357690586,1744332712035,-6483.88,0.00020547,2]
[357690587,1744332712046,-615.42,0.00020547,2]
[357690588,1744332712056,-500.0,0.00020547,2]
[357690589,1744332712066,-6484.18,0.00020547,2]
[357690590,1744332712075,-1945.56,0.00020547,2]
[357690591,1744332712086,-500.0,0.00020547,2]
[357690592,1744332712095,-524.93,0.00020547,2]
[357690593,1744332712105,-1064.33,0.00020547,2]
[357690594,1744332712115,-585.82,0.00020547,2]
[357690595,1744332712124,-1433.89,0.00020547,2]
[357690596,1744332712134,-917.83,0.00020547,2]
[357690597,1744332712143,-500.0,0.00020547,2]
[357690598,1744332712153,-668.16,0.00020547,2]
[357690599,1744332712164,-1100.79,0.00020547,2]
[357690600,1744332712173,-540.97,0.00020547,2]
[357690601,1744332712183,-4679.43,0.00020547,2]
[357690602,1744332712193,-947.12,0.00020547,2]
[357690603,1744332712202,-500.0,0.00020547,2]
[357690604,1744332712212,-1008.44,0.00020547,2]
[357690605,1744332712221,-500.0,0.00020547,2]
[357690606,1744332712231,-4183.52,0.00020547,2]
[357690607,1744332712241,-1151.7,0.00020547,2]
[357690608,1744332712250,-759.31,0.00020547,2]
[357690609,1744332712260,-500.0,0.00020547,2]
[357690610,1744332712269,-500.0,0.00020547,2]
[357690611,1744332712279,-626.77,0.00020547,2]
[357690612,1744332712289,-942.33,0.00020547,2]
[357690613,1744332712299,-2564.86,0.00020547,2]
[357690614,1744332712308,-1699.0,0.00020547,2]
[357690615,1744332712319,-731.4,0.00020547,2]
[357690616,1744332712328,-500.0,0.00020547,2]
[357690617,1744332712338,-570.97,0.00020547,2]
[357690618,1744332712348,-754.83,0.00020547,2]
[357690619,1744332712357,-3260.9,0.00020547,2]
[357690620,1744332712367,-500.9,0.00020547,2]
[357690621,1744332712377,-500.0,0.00020547,2]
[357690622,1744332712388,-18184.96,0.00020547,2]
[357690623,1744332712398,-500.0,0.00020547,2]
[357690624,1744332712407,-506.91,0.00020547,2]
[357690625,1744332712417,-740.5,0.00020547,2]
[357690626,1744332712426,-559.11,0.00020547,2]
[357690627,1744332712436,-500.0,0.00020547,2]
[357690628,1744332712445,-1994.39,0.00020547,2]
[357690629,1744332712454,-6436.24,0.00020547,2]
[357690630,1744332712464,-911.05,0.00020547,2]
[357690631,1744332712474,-1272.17,0.00020547,2]
[357690632,1744332712484,-1574.76,0.00020547,2]
[357690633,1744332712494,-976.71,0.00020547,2]
[357690634,1744332712504,-1474.54,0.00020547,2]
[357690635,1744332712513,-650.21,0.00020547,2]
[357690636,1744332712523,-500.0,0.00020547,2]
[357690637,1744332712533,-2422.75,0.00020547,2]
[357690638,1744332712543,-524.39,0.00020547,2]
[357690639,1744332712556,-151.0,0.00020548,2]
[357690640,1744332712567,-153.917266,0.00020548,2]
[357690641,1744332712577,-1082.90738552,0.0002061,2]
[357690642,1744332712587,-11630.24417326,0.00020762,2]
[357690643,1744332712597,-1616.49634174,0.00020798,2]
[357690644,1744332712607,-1132.93,0.00020821,2]
[357690645,1744332712617,-3699.75,0.00020821,2]
[357690646,1744332712627,-865.73,0.00020821,2]
[357690647,1744332712637,-1251.82,0.00020821,2]
[357690648,1744332712647,-599.27,0.00020821,2]
[357690649,1744332712658,-570.69,0.00020821,2]
[357690650,1744332712669,-822.09,0.00020821,2]
[357690651,1744332712679,-500.0,0.00020821,2]
[357690652,1744332712690,-780.46,0.00020821,2]
[357690653,1744332712700,-911.25,0.00020821,2]
[357690654,1744332712709,-500.0,0.00020821,2]
[357690655,1744332712718,-500.0,0.00020821,2]
[357690656,1744332712728,-300.0,0.00020821,2]
[357690657,1744332712738,-1232.99,0.00020821,2]
[357690658,1744332712749,-588.16,0.00020821,2]
[357690659,1744332712759,-500.0,0.00020821,2]
[357690660,1744332712769,-500.0,0.00020821,2]
[357690661,1744332712779,-507.17,0.00020821,2]
[357690662,1744332712788,-500.0,0.00020821,2]
[357690663,1744332712801,-1079.66,0.00020821,2]
[357690664,1744332712811,-1430.67,0.00020821,2]
[357690665,1744332712821,-1119.95,0.00020821,2]
[357690666,1744332712830,-625.16,0.00020821,2]
[357690667,1744332712840,-500.0,0.00020821,2]
[357690668,1744332712849,-500.0,0.00020821,2]
[357690669,1744332712859,-686.77,0.00020821,2]
[357690670,1744332712869,-2680.42,0.00020821,2]
[357690671,1744332712879,-417.64884553,0.00020821,2]
[357690672,1744332712889,-500.0,0.00020821,2]
[357690673,1744332712899,-500.0,0.00020821,2]
[357690674,1744332712908,-596.86,0.00020821,2]
[357690675,1744332712917,-2411.42,0.00020821,2]
[357690676,1744332712926,-500.0,0.00020821,2]
[357690677,1744332712936,-687.7,0.00020821,2]
[357690678,1744332712946,-500.0,0.00020821,2]
[357690679,1744332712955,-902.62,0.00020821,2]
[357690680,1744332712965,-2689.13,0.00020821,2]
[357690681,1744332712974,-785.7,0.00020821,2]
[357690682,1744332712984,-500.0,0.00020821,2]
[357690683,1744332712993,-5675.99,0.00020821,2]
[357690684,1744332713002,-870.2,0.00020821,2]
[357690685,1744332713012,-597.88,0.00020821,2]
[357690686,1744332713021,-544.51297215,0.00020821,2]
[357690687,1744332713031,-626.25,0.00020821,2]